[Event "1st Gujarat GM Open 2018"]
[Site "Ahmedabad"]
[Date "2018.10.07"]
[Round "4"]
[White "Shintre Neel"]
[Black "Gomes, Mary Ann"]
[Result "1-0"]
[ECO "B22"]
[WhiteElo "2093"]
[BlackElo "2302"]
[Annotator "NA"]
[PlyCount "135"]
[EventDate "2018.10.05"]
[EventType "swiss"]
[EventCountry "IND"]
[SourceTitle "playchess.com"]
[Source "ChessBase"]
[SourceQuality "1"]
[TimeControl "5400+30"]

1. e4 {[%emt 0:00:00]} c5 {[%emt 0:00:00]} 2. c3 {[%emt 0:00:20]} g6 {[%emt 0:00:31]} 3. d4 {[%emt 0:00:34]} cxd4 {[%emt 0:01:26]} 4. cxd4 {[%emt 0:00:16]} d5 {[%emt 0:00:10]} 5. e5 {[%emt 0:01:27]} Nc6 {[%emt 0:00:10]} 6. Nc3 {[%emt 0:01:04]} Bg7 {[%emt 0:00:19]} 7. h3 {[%emt 0:01:10]} f6 {[%emt 0:00:35]} 8. f4 {[%emt 0:00:51]} Nh6 {[%emt 0:00:17]} 9. g4 {[%emt 0:01:09]} fxe5 {[%emt 0:03:14]} 10. fxe5 {[%emt 0:00:57]} O-O {[%emt 0:10:47]} 11. Bg2 {[%emt 0:01:45]} Be6 {[%emt 0:07:26]} 12. Nf3 {[%emt 0:02:52]} Qb6 {[%emt 0:01:03]} 13. Na4 {[%emt 0:06:22]} Qc7 {[%emt 0:01:11]} 14. Nc5 {[%emt 0:01:14]} Bc8 {[%emt 0:06:44]} 15. O-O {[%emt 0:06:00]} b6 {[%emt 0:03:28]} 16. Nd3 {[%emt 0:03:47]} Ba6 {[%emt 0:02:38]} 17. Be3 {[%emt 0:01:44]} Qd7 {[%emt 0:02:02]} 18. Qd2 {[%emt 0:07:22]} Nf7 {[%emt 0:00:06]} 19. Rfe1 {[%emt 0:04:36]} e6 {[%emt 0:04:01]} 20. h4 {[%emt 0:03:53]} Rac8 {[%emt 0:00:43]} 21. Nf4 {[%emt 0:02:15]} Na5 {[%emt 0:01:21]} 22. b3 {[%emt 0:01:20]} Rc6 {[%emt 0:00:08]} 23. g5 {[%emt 0:02:56]} Rfc8 {[%emt 0:01:05]} 24. Rac1 {[%emt 0:02:23]} Rxc1 {[%emt 0:03:02]} 25. Rxc1 {[%emt 0:00:10]} Rxc1+ {[%emt 0:00:04]} 26. Qxc1 {[%emt 0:00:08]} Nc6 {[%emt 0:01:12]} 27. Bh3 {[%emt 0:02:44]} Nfd8 {[%emt 0:01:47]} 28. h5 {[%emt 0:05:29]} Ne7 {[%emt 0:02:09]} 29. Qc2 {[%emt 0:03:26]} Qc8 {[%emt 0:01:25]} 30. Qd2 {[%emt 0:04:10]} Bb5 {[%emt 0:11:34]} 31. Nh2 {[%emt 0:06:31]} gxh5 {[%emt 0:04:48]} 32. Nxh5 {[%emt 0:01:53]} Nf5 {[%emt 0:00:06]} 33. Nf6+ {[%emt 0:10:08]} Kh8 {[%emt 0:03:58]} 34. Bxf5 {[%emt 0:06:59]} exf5 {[%emt 0:00:05]} 35. Nxd5 {[%emt 0:00:58]} Ne6 {[%emt 0:00:09]} 36. Nf6 {[%emt 0:00:58]} Bf8 {[%emt 0:07:42]} 37. d5 {[%emt 0:02:30]} Nc5 {[%emt 0:07:09]} 38. Qc3 {[%emt 0:02:09]} Qb8 {[%emt 0:02:11]} 39. g6 {[%emt 0:01:08]} Nd3 {[%emt 0:02:07]} 40. a4 {[%emt 0:00:56]} Bb4 {[%emt 0:01:19]} 41. Qc2 {[%emt 0:02:09]} Ba6 {[%emt 0:00:34]} 42. Qg2 {[%emt 0:00:39]} Qc7 {[%emt 0:04:16]} 43. d6 {[%emt 0:00:45]} Qb7 {[%emt 0:01:00]} 44. Qh3 {[%emt 0:00:52]} Nxe5 {[%emt 0:01:58]} 45. Nxh7 {[%emt 0:00:39]} Nxg6 46. Bd4+ {[%emt 0:00:46]} Kg8 {[%emt 0:03:42]} 47. Nf6+ {[%emt 0:00:01]} Kf7 {[%emt 0:00:40]} 48. Qh7+ {[%emt 0:00:26]} Ke6 {[%emt 0:00:09]} 49. Qxg6 {[%emt 0:00:32]} Bxd6 {[%emt 0:01:15]} 50. Ne8+ {[%emt 0:00:23]} Kd7 {[%emt 0:00:06]} 51. Nxd6 {[%emt 0:00:30]} Qd5 {[%emt 0:00:04]} 52. Nxf5 {[%emt 0:00:27]} Bd3 {[%emt 0:01:07]} 53. Qg7+ {[%emt 0:00:10]} Ke6 {[%emt 0:00:08]} 54. Qf6+ {[%emt 0:00:26]} Kd7 {[%emt 0:00:06]} 55. Qe7+ {[%emt 0:00:14]} Kc6 {[%emt 0:00:17]} 56. Qe8+ {[%emt 0:00:24]} Kb7 {[%emt 0:00:06]} 57. Qe7+ {[%emt 0:00:56]} Ka6 {[%emt 0:00:16]} 58. b4 {[%emt 0:01:35]} Qc4 {[%emt 0:02:08]} 59. b5+ {[%emt 0:00:27]} Ka5 {[%emt 0:00:05]} 60. Qxa7+ {[%emt 0:00:05]} Kb4 {[%emt 0:00:04]} 61. Bxb6 {[%emt 0:00:44]} Qc1+ {[%emt 0:00:54]} 62. Kg2 {[%emt 0:00:18]} Bxf5 {[%emt 0:01:07]} 63. Be3 {[%emt 0:00:30]} Be4+ {[%emt 0:00:25]} 64. Kg3 {[%emt 0:00:20]} Qe1+ {[%emt 0:00:06]} 65. Kf4 Qh4+ {[%emt 0:00:13]} 66. Ng4 {[%emt 0:00:31]} Bd3 {[%emt 0:01:25]} 67. Qd4+ {[%emt 0:00:13]} Ka5 {[%emt 0:00:36]} 68. Bd2# {[%emt 0:00:08]} 1-0

[Event "1st Gujarat GM Open 2018"]
[Site "Ahmedabad"]
[Date "2018.10.07"]
[Round "4"]
[White "Nayak Rajesh"]
[Black "Srijit Paul"]
[Result "1/2-1/2"]
[ECO "B02"]
[WhiteElo "2084"]
[BlackElo "2292"]
[Annotator "NA"]
[PlyCount "103"]
[EventDate "2018.10.05"]
[EventType "swiss"]
[EventCountry "IND"]
[SourceTitle "playchess.com"]
[Source "ChessBase"]
[SourceQuality "1"]
[TimeControl "5400+30"]

1. e4 {[%emt 0:01:58]} Nf6 {[%emt 0:00:00]} 2. d3 {[%emt 0:06:02]} e6 {[%emt 0:00:46]} 3. Nf3 {[%emt 0:02:05]} d5 {[%emt 0:00:05]} 4. Nbd2 {[%emt 0:00:41]} c5 {[%emt 0:00:10]} 5. g3 {[%emt 0:00:15]} Nc6 {[%emt 0:00:04]} 6. Bg2 {[%emt 0:00:09]} b6 {[%emt 0:00:04]} 7. O-O {[%emt 0:00:13]} Be7 {[%emt 0:00:05]} 8. Re1 {[%emt 0:07:30]} Bb7 {[%emt 0:00:43]} 9. c3 {[%emt 0:08:04]} Qc7 {[%emt 0:01:06]} 10. a3 {[%emt 0:07:57]} dxe4 {[%emt 0:08:24]} 11. dxe4 {[%emt 0:00:17]} e5 {[%emt 0:00:05]} 12. Nc4 {[%emt 0:05:42]} Rd8 {[%emt 0:00:18]} 13. Qc2 {[%emt 0:00:18]} O-O {[%emt 0:02:32]} 14. Nh4 {[%emt 0:05:15]} Ba6 {[%emt 0:01:14]} 15. Bf1 {[%emt 0:00:43]} Bxc4 {[%emt 0:00:58]} 16. Bxc4 {[%emt 0:00:11]} Na5 {[%emt 0:00:03]} 17. Qe2 {[%emt 0:03:29]} Nxc4 {[%emt 0:01:45]} 18. Qxc4 {[%emt 0:00:04]} Ne8 {[%emt 0:07:27]} 19. Nf5 {[%emt 0:03:09]} Nd6 {[%emt 0:00:07]} 20. Nxd6 {[%emt 0:00:10]} Rxd6 {[%emt 0:00:07]} 21. Be3 {[%emt 0:00:29]} Rfd8 {[%emt 0:00:20]} 22. a4 {[%emt 0:00:24]} Qc6 {[%emt 0:01:02]} 23. a5 {[%emt 0:03:24]} R6d7 {[%emt 0:00:35]} 24. axb6 {[%emt 0:00:25]} axb6 {[%emt 0:00:01]} 25. Qb3 {[%emt 0:07:27]} h5 {[%emt 0:01:11]} 26. h4 {[%emt 0:02:36]} b5 {[%emt 0:03:49]} 27. Qc2 {[%emt 0:02:04]} Rd3 {[%emt 0:00:19]} 28. Qe2 {[%emt 0:01:05]} g6 {[%emt 0:07:21]} 29. Ra7 {[%emt 0:02:22]} Bf8 {[%emt 0:01:02]} 30. Qf3 {[%emt 0:01:16]} Qe6 {[%emt 0:10:49]} 31. Rea1 {[%emt 0:06:14]} Bh6 {[%emt 0:00:23]} 32. R1a6 {[%emt 0:00:06]} Qb3 {[%emt 0:01:13]} 33. c4 {[%emt 0:15:44]} Qxc4 {[%emt 0:18:37]} 34. Rxg6+ {[%emt 0:00:41]} fxg6 {[%emt 0:00:50]} 35. Qf6 {[%emt 0:00:05]} R3d7 {[%emt 0:11:50]} 36. Rxd7 {[%emt 0:00:28]} Rxd7 {[%emt 0:00:07]} 37. Qxg6+ {[%emt 0:00:09]} Rg7 {[%emt 0:00:04]} 38. Qxh6 {[%emt 0:00:10]} Qxe4 {[%emt 0:00:09]} 39. Qxh5 {[%emt 0:00:22]} Rxg3+ {[%emt 0:10:33]} 40. fxg3 {[%emt 0:00:05]} Qxe3+ {[%emt 0:00:05]} 41. Kg2 {[%emt 0:01:01]} Kg7 {[%emt 0:00:33]} 42. Qe8 {[%emt 0:00:36]} Qe4+ {[%emt 0:04:15]} 43. Kh2 {[%emt 0:00:17]} Qc2+ {[%emt 0:00:12]} 44. Kh3 {[%emt 0:00:10]} Qf5+ {[%emt 0:00:05]} 45. Kh2 {[%emt 0:00:09]} e4 {[%emt 0:01:47]} 46. Qxb5 {[%emt 0:01:53]} e3 {[%emt 0:05:21]} 47. Qb7+ {[%emt 0:00:46]} Kf6 {[%emt 0:00:07]} 48. Qc6+ {[%emt 0:00:45]} Ke7 {[%emt 0:00:06]} 49. Qc7+ {[%emt 0:01:10]} Ke8 {[%emt 0:00:05]} 50. Qc6+ {[%emt 0:00:16]} Ke7 {[%emt 0:00:17]} 51. Qc7+ {[%emt 0:00:39]} Ke8 {[%emt 0:00:08]} 52. Qc6+ {[%emt 0:03:13]} 1/2-1/2

[Event "1st Gujarat GM Open 2018"]
[Site "Ahmedabad"]
[Date "2018.10.07"]
[Round "4"]
[White "Saranya, J."]
[Black "Kushagra Mohan"]
[Result "1/2-1/2"]
[ECO "C54"]
[WhiteElo "2071"]
[BlackElo "2283"]
[Annotator "NA"]
[PlyCount "50"]
[EventDate "2018.10.05"]
[EventType "swiss"]
[EventCountry "IND"]
[SourceTitle "playchess.com"]
[Source "ChessBase"]
[SourceQuality "1"]
[TimeControl "5400+30"]

1. e4 {[%emt 0:00:00]} e5 {[%emt 0:00:00]} 2. Nf3 {[%emt 0:00:00]} Nc6 {[%emt 0:00:00]} 3. Bc4 {[%emt 0:00:00]} Bc5 {[%emt 0:00:00]} 4. c3 {[%emt 0:00:09]} Nf6 {[%emt 0:00:00]} 5. d3 {[%emt 0:00:07]} O-O {[%emt 0:00:08]} 6. O-O {[%emt 0:01:12]} d6 {[%emt 0:00:02]} 7. Nbd2 {[%emt 0:02:37]} a6 {[%emt 0:00:27]} 8. a4 {[%emt 0:00:30]} h6 {[%emt 0:00:49]} 9. Re1 {[%emt 0:03:03]} Kh8 {[%emt 0:08:20]} 10. Nf1 {[%emt 0:03:28]} Be6 {[%emt 0:03:55]} 11. Ng3 {[%emt 0:12:43]} d5 {[%emt 0:04:49]} 12. exd5 {[%emt 0:01:05]} Bxd5 {[%emt 0:02:10]} 13. Bxd5 {[%emt 0:10:00]} Qxd5 {[%emt 0:00:38]} 14. b4 {[%emt 0:03:05]} Ba7 {[%emt 0:04:04]} 15. c4 {[%emt 0:02:42]} Qd6 {[%emt 0:06:45]} 16. b5 {[%emt 0:11:27]} axb5 {[%emt 0:03:31]} 17. axb5 {[%emt 0:07:04]} Nb4 {[%emt 0:05:57]} 18. Rxa7 {[%emt 0:05:52]} Rxa7 {[%emt 0:00:29]} 19. Nxe5 {[%emt 0:00:11]} Nd7 {[%emt 0:11:45]} 20. Nf5 {[%emt 0:07:44]} Qe6 {[%emt 0:00:32]} 21. Nd4 {[%emt 0:05:25]} Qd6 {[%emt 0:07:05]} 22. Nf5 {[%emt 0:00:47]} Qe6 {[%emt 0:01:09]} 23. Nd4 {[%emt 0:00:10]} Qd6 {[%emt 0:07:04]} 24. Nf5 {[%emt 0:00:08]} Qe6 {[%emt 0:00:05]} 25. Nd4 {[%emt 0:00:06]} Qd6 {[%emt 0:00:04]} 1/2-1/2

[Event "1st Gujarat GM Open 2018"]
[Site "Ahmedabad"]
[Date "2018.10.07"]
[Round "4"]
[White "Soham Datar"]
[Black "Patil, Pratik"]
[Result "1/2-1/2"]
[ECO "A05"]
[WhiteElo "2060"]
[BlackElo "2280"]
[Annotator "NA"]
[PlyCount "109"]
[EventDate "2018.10.05"]
[EventType "swiss"]
[EventCountry "IND"]
[SourceTitle "playchess.com"]
[Source "ChessBase"]
[SourceQuality "1"]
[TimeControl "5400+30"]

1. Nf3 {[%emt 0:00:00]} Nf6 {[%emt 0:00:00]} 2. c4 {[%emt 0:00:00]} c6 {[%emt 0:00:59]} 3. g3 {[%emt 0:00:00]} g6 {[%emt 0:00:08]} 4. Bg2 {[%emt 0:00:08]} Bg7 {[%emt 0:00:04]} 5. O-O {[%emt 0:00:05]} O-O {[%emt 0:00:08]} 6. Nc3 {[%emt 0:00:08]} d5 {[%emt 0:00:07]} 7. cxd5 {[%emt 0:00:05]} cxd5 {[%emt 0:00:19]} 8. d4 {[%emt 0:00:04]} Nc6 {[%emt 0:25:47]} 9. Ne5 {[%emt 0:00:05]} Bf5 {[%emt 0:02:54]} 10. Bf4 {[%emt 0:00:29]} Rc8 {[%emt 0:06:04]} 11. Nxc6 {[%emt 0:00:13]} Rxc6 {[%emt 0:06:27]} 12. Be5 {[%emt 0:00:30]} Ne4 {[%emt 0:11:33]} 13. Nxe4 {[%emt 0:01:12]} Bxe4 {[%emt 0:09:23]} 14. Bxg7 {[%emt 0:05:07]} Kxg7 {[%emt 0:03:06]} 15. Bxe4 {[%emt 0:00:10]} dxe4 {[%emt 0:00:03]} 16. d5 {[%emt 0:00:07]} Rb6 {[%emt 0:11:41]} 17. Qd4+ {[%emt 0:00:55]} Kg8 {[%emt 0:00:07]} 18. Qxe4 {[%emt 0:08:28]} Rxb2 {[%emt 0:00:35]} 19. Rfb1 {[%emt 0:00:07]} Rxb1+ {[%emt 0:02:02]} 20. Rxb1 {[%emt 0:00:04]} Qd7 {[%emt 0:00:22]} 21. d6 {[%emt 0:05:41]} b6 {[%emt 0:00:20]} 22. Qxe7 {[%emt 0:00:06]} Qxe7 {[%emt 0:00:10]} 23. dxe7 {[%emt 0:00:04]} Re8 {[%emt 0:00:03]} 24. e4 {[%emt 0:00:34]} Rxe7 {[%emt 0:00:04]} 25. f3 {[%emt 0:00:04]} Rc7 {[%emt 0:02:12]} 26. Rb2 {[%emt 0:00:06]} h5 {[%emt 0:00:16]} 27. Kf2 {[%emt 0:00:16]} Kf8 {[%emt 0:00:16]} 28. f4 {[%emt 0:00:39]} Rc3 {[%emt 0:00:39]} 29. Ke2 {[%emt 0:00:55]} Ke7 {[%emt 0:02:18]} 30. Kd2 {[%emt 0:00:19]} Ra3 {[%emt 0:04:24]} 31. Rc2 {[%emt 0:00:14]} Kd7 {[%emt 0:04:27]} 32. Kc1 {[%emt 0:02:19]} Rf3 {[%emt 0:05:07]} 33. Rd2+ {[%emt 0:01:06]} Ke6 {[%emt 0:01:50]} 34. Kc2 {[%emt 0:03:42]} h4 {[%emt 0:00:46]} 35. Rd3 {[%emt 0:00:46]} Rf2+ {[%emt 0:00:31]} 36. Rd2 {[%emt 0:00:10]} Rf3 {[%emt 0:00:15]} 37. Rd3 {[%emt 0:00:05]} Rf2+ {[%emt 0:00:07]} 38. Rd2 {[%emt 0:00:05]} hxg3 {[%emt 0:02:54]} 39. hxg3 {[%emt 0:00:06]} Rxd2+ {[%emt 0:00:25]} 40. Kxd2 {[%emt 0:00:03]} Kd6 {[%emt 0:00:06]} 41. Kd3 {[%emt 0:00:34]} Kc5 {[%emt 0:00:13]} 42. g4 {[%emt 0:02:41]} f6 {[%emt 0:00:02]} 43. f5 {[%emt 0:07:04]} gxf5 {[%emt 0:00:09]} 44. gxf5 {[%emt 0:00:09]} Kd6 {[%emt 0:01:54]} 45. Kd4 {[%emt 0:00:04]} b5 {[%emt 0:00:12]} 46. e5+ {[%emt 0:00:12]} fxe5+ {[%emt 0:00:05]} 47. Ke4 {[%emt 0:00:01]} a5 {[%emt 0:01:24]} 48. f6 {[%emt 0:00:04]} b4 {[%emt 0:00:30]} 49. f7 {[%emt 0:00:04]} Ke7 {[%emt 0:00:03]} 50. Kxe5 {[%emt 0:00:03]} a4 {[%emt 0:00:06]} 51. Kd4 {[%emt 0:00:12]} b3 {[%emt 0:00:07]} 52. Kc3 {[%emt 0:00:28]} bxa2 {[%emt 0:00:36]} 53. Kb2 {[%emt 0:00:04]} a3+ {[%emt 0:00:01]} 54. Kxa2 {[%emt 0:00:07]} Kxf7 {[%emt 0:00:02]} 55. Kxa3 {[%emt 0:00:01]} 1/2-1/2

[Event "1st Gujarat GM Open 2018"]
[Site "Ahmedabad"]
[Date "2018.10.07"]
[Round "4"]
[White "Sudhanshu Ranjan"]
[Black "Bharath Subramaniyam H"]
[Result "0-1"]
[ECO "D46"]
[WhiteElo "2060"]
[BlackElo "2276"]
[Annotator "NA"]
[PlyCount "102"]
[EventDate "2018.10.05"]
[EventType "swiss"]
[EventCountry "IND"]
[SourceTitle "playchess.com"]
[Source "ChessBase"]
[SourceQuality "1"]
[TimeControl "5400+30"]

1. d4 {[%emt 0:00:00]} d5 {[%emt 0:00:00]} 2. c4 {[%emt 0:00:00]} c6 {[%emt 0:00:08]} 3. Nc3 {[%emt 0:04:36]} Nf6 {[%emt 0:00:14]} 4. Nf3 {[%emt 0:00:20]} e6 {[%emt 0:00:10]} 5. e3 {[%emt 0:02:55]} Nbd7 {[%emt 0:00:17]} 6. Bd3 {[%emt 0:00:26]} Bd6 {[%emt 0:00:24]} 7. O-O {[%emt 0:01:38]} O-O {[%emt 0:00:35]} 8. e4 {[%emt 0:01:53]} dxc4 {[%emt 0:01:58]} 9. Bxc4 {[%emt 0:00:12]} e5 {[%emt 0:00:09]} 10. Bg5 {[%emt 0:19:02]} b5 {[%emt 0:03:28]} 11. Bb3 {[%emt 0:01:32]} Bb7 {[%emt 0:02:53]} 12. Bh4 {[%emt 0:08:21]} a6 {[%emt 0:12:58]} 13. Bg3 {[%emt 0:06:50]} Qe7 {[%emt 0:02:38]} 14. dxe5 {[%emt 0:08:46]} Bxe5 {[%emt 0:07:37]} 15. Nxe5 {[%emt 0:01:34]} Nxe5 {[%emt 0:00:13]} 16. f4 Nc4 {[%emt 0:03:03]} 17. Qe2 {[%emt 0:15:53]} Rfe8 {[%emt 0:01:43]} 18. Bxc4 {[%emt 0:04:21]} bxc4 {[%emt 0:08:34]} 19. Rae1 Qc5+ {[%emt 0:10:57]} 20. Bf2 {[%emt 0:04:21]} Qb4 {[%emt 0:00:31]} 21. Bd4 {[%emt 0:00:38]} Rad8 {[%emt 0:06:35]} 22. a3 {[%emt 0:02:33]} Qb3 {[%emt 0:13:29]} 23. Bxf6 {[%emt 0:00:32]} gxf6 {[%emt 0:00:06]} 24. Rf3 {[%emt 0:03:47]} Qb6+ {[%emt 0:02:11]} 25. Kh1 {[%emt 0:03:22]} Rd3 {[%emt 0:01:34]} 26. Rxd3 {[%emt 0:01:00]} cxd3 {[%emt 0:00:02]} 27. Qxd3 {[%emt 0:00:14]} c5 {[%emt 0:01:01]} 28. h3 {[%emt 0:02:00]} f5 {[%emt 0:06:48]} 29. Qg3+ {[%emt 0:01:20]} Kf8 {[%emt 0:00:43]} 30. e5 {[%emt 0:05:52]} Qxb2 {[%emt 0:01:46]} 31. Ne2 {[%emt 0:00:51]} Re6 {[%emt 0:01:02]} 32. Qc3 {[%emt 0:00:20]} Qxc3 {[%emt 0:00:52]} 33. Nxc3 {[%emt 0:00:02]} Rg6 {[%emt 0:00:02]} 34. Re2 {[%emt 0:00:19]} Rg3 {[%emt 0:00:10]} 35. Rc2 {[%emt 0:00:31]} Rxh3+ {[%emt 0:00:22]} 36. Kg1 {[%emt 0:00:06]} Rg3 {[%emt 0:00:22]} 37. Na4 {[%emt 0:00:19]} Be4 {[%emt 0:00:18]} 38. Re2 {[%emt 0:00:50]} c4 {[%emt 0:00:08]} 39. Nc5 {[%emt 0:00:14]} Bc6 {[%emt 0:01:15]} 40. Nxa6 {[%emt 0:00:25]} Rxa3 {[%emt 0:00:05]} 41. Nb4 {[%emt 0:00:10]} Be4 {[%emt 0:00:09]} 42. Nc2 {[%emt 0:00:37]} Ra2 {[%emt 0:01:14]} 43. Nd4 {[%emt 0:00:05]} Ra1+ {[%emt 0:00:18]} 44. Kf2 {[%emt 0:00:03]} c3 {[%emt 0:00:24]} 45. g4 {[%emt 0:00:12]} Bd3 {[%emt 0:00:39]} 46. Re3 {[%emt 0:00:01]} c2 {[%emt 0:01:07]} 47. Nb3 {[%emt 0:02:24]} Rf1+ {[%emt 0:01:00]} 48. Kg2 {[%emt 0:00:07]} Rd1 {[%emt 0:00:09]} 49. gxf5 {[%emt 0:00:42]} Bc4 {[%emt 0:00:22]} 50. Nc1 {[%emt 0:01:46]} Rxc1 {[%emt 0:00:10]} 51. Rc3 {[%emt 0:00:02]} Bd5+ {[%emt 0:00:44]} 0-1

[Event "1st Gujarat GM Open 2018"]
[Site "Ahmedabad"]
[Date "2018.10.07"]
[Round "4"]
[White "Tarun Kanyamarala"]
[Black "Deshmukh, Anup"]
[Result "0-1"]
[ECO "A57"]
[WhiteElo "2046"]
[BlackElo "2267"]
[Annotator "NA"]
[PlyCount "58"]
[EventDate "2018.10.05"]
[EventType "swiss"]
[EventCountry "IND"]
[SourceTitle "playchess.com"]
[Source "ChessBase"]
[SourceQuality "1"]
[TimeControl "5400+30"]

1. d4 {[%emt 0:00:00]} Nf6 {[%emt 0:00:00]} 2. c4 {[%emt 0:00:30]} c5 {[%emt 0:00:02]} 3. d5 {[%emt 0:00:19]} b5 {[%emt 0:01:00]} 4. Qc2 {[%emt 0:02:18]} d6 {[%emt 0:04:09]} 5. e4 {[%emt 0:01:48]} b4 {[%emt 0:00:52]} 6. f4 {[%emt 0:03:06]} g6 {[%emt 0:01:00]} 7. Nf3 {[%emt 0:05:06]} Bg7 {[%emt 0:01:55]} 8. Bd3 {[%emt 0:01:26]} O-O {[%emt 0:00:15]} 9. O-O {[%emt 0:00:48]} a5 {[%emt 0:01:36]} 10. Nbd2 {[%emt 0:10:13]} e6 {[%emt 0:05:25]} 11. e5 {[%emt 0:18:53]} Ng4 {[%emt 0:03:30]} 12. Ne4 {[%emt 0:00:43]} dxe5 {[%emt 0:05:15]} 13. fxe5 {[%emt 0:05:43]} exd5 {[%emt 0:03:17]} 14. cxd5 {[%emt 0:04:23]} Nxe5 {[%emt 0:05:11]} 15. Nxe5 {[%emt 0:02:11]} Bxe5 {[%emt 0:00:10]} 16. Be3 {[%emt 0:02:17]} Nd7 {[%emt 0:08:44]} 17. Bg5 {[%emt 0:01:22]} Qb6 {[%emt 0:01:12]} 18. Kh1 {[%emt 0:01:56]} Bb7 {[%emt 0:01:34]} 19. Bc4 {[%emt 0:05:42]} f5 {[%emt 0:03:32]} 20. Nf2 {[%emt 0:02:40]} Qd6 {[%emt 0:01:27]} 21. Rfe1 {[%emt 0:02:55]} Rae8 {[%emt 0:00:51]} 22. Nd3 {[%emt 0:04:46]} f4 {[%emt 0:01:18]} 23. Bb5 {[%emt 0:02:12]} f3 {[%emt 0:05:44]} 24. Bc4 {[%emt 0:02:40]} Nb6 {[%emt 0:06:30]} 25. Nxe5 {[%emt 0:04:49]} Rxe5 {[%emt 0:01:13]} 26. Be7 {[%emt 0:01:06]} Rxe7 {[%emt 0:07:26]} 27. Rxe7 {[%emt 0:00:06]} fxg2+ {[%emt 0:00:23]} 28. Kg1 {[%emt 0:00:54]} Nxc4 {[%emt 0:00:26]} 29. Rxb7 {[%emt 0:00:29]} Rf1+ 0-1

[Event "1st Gujarat GM Open 2018"]
[Site "Ahmedabad"]
[Date "2018.10.07"]
[Round "4"]
[White "Tarun Kanyamarala"]
[Black "Deshmukh, Anup"]
[Result "*"]
[ECO "B75"]
[WhiteElo "2046"]
[BlackElo "2267"]
[Annotator "NA"]
[PlyCount "66"]
[EventDate "2018.10.05"]
[EventType "swiss"]
[EventCountry "IND"]
[SourceTitle "playchess.com"]
[Source "ChessBase"]
[SourceQuality "1"]
[TimeControl "5400+30"]

1. e4 {[%emt 0:00:00]} c5 {[%emt 0:00:00]} 2. Nf3 {[%emt 0:00:00]} d6 {[%emt 0:00:00]} 3. d4 {[%emt 0:00:00]} cxd4 {[%emt 0:00:00]} 4. Nxd4 {[%emt 0:00:00]} Nf6 {[%emt 0:00:00]} 5. Nc3 {[%emt 0:00:00]} g6 {[%emt 0:00:00]} 6. Be3 {[%emt 0:00:34]} Bg7 {[%emt 0:00:00]} 7. f3 {[%emt 0:00:21]} Nc6 {[%emt 0:00:02]} 8. Qd2 {[%emt 0:00:12]} O-O {[%emt 0:00:06]} 9. g4 {[%emt 0:01:21]} Be6 {[%emt 0:00:08]} 10. Nxe6 {[%emt 0:01:09]} fxe6 {[%emt 0:00:04]} 11. O-O-O {[%emt 0:00:19]} Rc8 {[%emt 0:04:59]} 12. h4 {[%emt 0:03:35]} Qa5 {[%emt 0:00:05]} 13. Kb1 {[%emt 0:05:40]} b5 {[%emt 0:09:34]} 14. Nxb5 {[%emt 0:03:35]} Nb4 {[%emt 0:13:27]} 15. a3 {[%emt 0:00:23]} Nfd5 {[%emt 0:00:26]} 16. Bd4 {[%emt 0:28:26]} Rxc2 {[%emt 0:00:37]} 17. Qe1 {[%emt 0:00:06]} Bxd4 {[%emt 0:03:52]} 18. Rxd4 {[%emt 0:02:38]} Qa4 {[%emt 0:01:07]} 19. Rxb4 {[%emt 0:01:40]} Nxb4 {[%emt 0:00:38]} 20. Qxb4 {[%emt 0:00:06]} Qxb4 {[%emt 0:00:04]} 21. axb4 {[%emt 0:00:08]} Rd2 {[%emt 0:00:05]} 22. Bc4 {[%emt 0:03:27]} Rxf3 {[%emt 0:00:42]} 23. Bxe6+ {[%emt 0:00:11]} Kg7 {[%emt 0:00:05]} 24. Nc3 {[%emt 0:11:23]} Rff2 {[%emt 0:00:08]} 25. Nd1 {[%emt 0:00:14]} Rf4 {[%emt 0:00:04]} 26. Nc3 {[%emt 0:06:07]} Rff2 {[%emt 0:00:05]} 27. Nd1 {[%emt 0:02:30]} Rf4 {[%emt 0:00:02]} 28. Kc1 {[%emt 0:01:42]} Rg2 {[%emt 0:01:21]} 29. Nc3 {[%emt 0:05:03]} Rff2 {[%emt 0:00:20]} 30. Nd1 {[%emt 0:00:44]} Rf4 31. Nc3 {[%emt 0:00:05]} Rff2 {[%emt 0:00:10]} 32. Nd1 Rd2 33. Nc3 {[%emt 0:08:02]} Rgf2 {[%emt 1:08:19]} *